Cogmind - Beta 15 @@@ ROGUE MODE // 2025.08.23 @ 15:41:43 Player: skye Result: Destroyed by QX-RMD(R) with Subdweller Machine Gun Performance ------------- Evolutions (0) 0 Regions Visited (3) 600 Robots Destroyed (13) 65 Value Destroyed (221) 221 Prototype IDs (0) 0 Alien Tech Used (0) 0 Bonus (0) 0 TOTAL SCORE: 886 Bonus ------- None Cogmind --------- Core Integrity 0/250 Matter 290/300 Energy 193/200 System Corruption 0% Temperature Cool (0) Movement Walking (190) Ox1 Location -10/Subcaves Parts ------- > --- POWER (1) -------- Subdweller Power Source > --- PROPULSION (2) --- Aluminum Leg > --- UTILITY (2) ------ Improved Heat Sink Small Storage Unit > --- WEAPON (2) ------- Subdweller Beam Cannon Light Assault Rifle > --- INVENTORY (8) ---- Ion Engine Light Ion Engine Aluminum Leg Wheel Compact Wheel Small Laser Mining Laser Blade Trap Peak State ------------ > --- POWER ------------ Subdweller Power Source > --- PROPULSION ------- Aluminum Leg Aluminum Leg > --- UTILITY ---------- Improved Heat Sink Small Storage Unit > --- WEAPON ----------- Subdweller Beam Cannon Light Assault Rifle > --- INVENTORY -------- Ion Engine Light Ion Engine Aluminum Leg Wheel Compact Wheel Small Laser Mining Laser Blade Trap [Rating: 11] Favorites ----------- Power Ion Engine Engine Ion Engine Propulsion Aluminum Leg Leg Aluminum Leg Utility Small Storage Unit Device Improved Heat Sink Storage Small Storage Unit Protection Propulsion Shielding Weapon Light Assault Rifle Energy Gun Small Laser Energy Cannon Subdweller Beam Cannon Ballistic Gun Light Assault Rifle Build | -11 -10 -10 -10 ------- Run | Yrd Mat Min Sub Slots Evolved . | . . . . Power . | . . . . Propulsion . | . . . . Utility . | . . . . Weapon . | . . . . Parts Attached 8 | . 2 2 4 Power 2 | . . . 2 Engine 2 | . . . 2 Core . | . . . . Reactor . | . . . . Propulsion 1 | . . 1 . Treads . | . . . . Leg 1 | . . 1 . Wheel . | . . . . Hover . | . . . . Flight . | . . . . Utility 2 | . 1 . 1 Device 1 | . . . 1 Storage . | . . . . Processor . | . . . . Hackware . | . . . . Protection 1 | . 1 . . Artifact . | . . . . Weapon 3 | . 1 1 1 Energy Gun 1 | . . 1 . Energy Cannon 1 | . . . 1 Ballistic Gun 1 | . 1 . . Ballistic Cannon . | . . . . Launcher . | . . . . Special Weapon . | . . . . Impact Weapon . | . . . . Slashing Weapon . | . . . . Piercing Weapon . | . . . . Special Melee Weapon . | . . . . Unidentified Prototypes . | . . . . Parts Lost 3 | . . . 3 Power 1 | . . . 1 Propulsion 1 | . . . 1 Utility 1 | . . . 1 Weapon . | . . . . Highest Loss Streak 2 | . . . 2 To Critical Strikes . | . . . . Average Backups 6 | 6 6 6 6 Power 1 | 1 1 2 1 Propulsion 3 | 4 4 2 3 Utility . | . . . . Weapon 1 | 1 1 1 1 Tool/Special . | . . . . Unused Backups 18 | . 9 3 6 Power 5 | . 1 2 2 Propulsion 9 | . 6 . 3 Utility 2 | . 1 1 . Weapon 2 | . 1 . 1 Tool/Special . | . . . . Average Slot Usage (%) 97 | . 91 100 98 Engine 14 | . 14 14 14 Leg 27 | . 28 28 27 Device 1 | . . . 5 Storage 14 | . 14 14 14 Protection 10 | . 5 14 7 Energy Gun 12 | . 14 14 10 Energy Cannon 1 | . . . 3 Ballistic Gun 14 | . 14 14 14 Peak Build Rating 11 | 6 7 8 11 Average Rating 7 | 6 6 7 8 On Entrance 6 | 6 6 7 8 Naked Turns . | . . . . Heaviest Build 20 | 13 14 14 20 Greatest Support 20 | 20 20 20 20 Greatest Overweight (x) . | . . . . Average Overweight (x) . | . . . . Largest Inventory Capacity 8 | 8 8 8 8 Average Capacity 8 | 8 8 8 8 Most Carried 8 | 6 8 8 8 Average Carried 7 | 6 6 7 7 Final Capacity 8 | 8 8 8 8 Final Carried 8 | 6 6 8 8 Class Distribution -------------------- 90% | Mutant 9% | Scavenger-Mutant Dominant Class ---------------- Mutant | -10/Materials Mutant | -10/Mines Mutant | -10/Subcaves Resources | -11 -10 -10 -10 ----------- Run | Yrd Mat Min Sub Matter Collected 295 | 200 27 29 39 Remotely . | . . . . Salvage Created 254 | . 43 110 101 Parts 28 | . 6 11 11 Haulers Intercepted . | . . . . Recyclers Shooed . | . . . . Parts Field Recycled . | . . . . Retrieved Matter . | . . . . Parts Self-Destructed 9 | . . . 9 Prevented . | . . . . Kills | -11 -10 -10 -10 ------- Run | Yrd Mat Min Sub Combat Hostiles Destroyed 13 | . 3 5 5 Guns 13 | . 3 5 5 Classes Destroyed 3 | . 1 1 1 Swarmer 10 | . 3 3 4 Grunt 2 | . . 2 . Subdweller 1 | . . . 1 Best Kill Streak 5 | . 3 5 4 Combat Bots Only 5 | . 3 5 4 Max Kills in Single Turn 2 | . 2 2 1 Gunslinging 1 | . 1 1 . Exploded . | . . . . Melee . | . . . . Uniques/NPCs Destroyed . | . . . . Combat | -11 -10 -10 -10 -------- Run | Yrd Mat Min Sub Hostile Shots Fired 100 | . 20 18 62 Missed 28 | . 5 6 17 Hits 72 | . 15 12 45 Projectile 72 | . 15 12 45 Critical Strikes 2 | . . 1 1 Actively Blocked 1 | . . . 1 Damage Taken 893 | . 124 143 626 Core 254 | . 23 43 188 Absorbed by Shields . | . . . . Redirected to Shielding 50 | . 10 10 30 Core Remaining (%) 100 | 100 . . . Volleys Fired 45 | . 8 13 24 Largest 2 | . 2 2 2 Hottest 100 | . 70 70 100 Shots Fired 90 | . 16 26 48 Gun 84 | . 16 26 42 Cannon 6 | . . . 6 Launcher . | . . . . Special . | . . . . Kinetic 45 | . 8 13 24 Thermal 45 | . 8 13 24 Explosive . | . . . . Electromagnetic . | . . . . Robot Hit Streak 14 | . 4 14 12 Robot Miss Streak 6 | . 3 6 2 Penetration Max . | . . . . Secondary Targets 5 | . 1 2 2 Max Gunslinging Chain 1 | . 1 1 1 Shots Hit Robots 60 | . 8 17 35 Core Hits 24 | . 4 10 10 Critical Kills . | . . . . Critical Parts Destroyed . | . . . . Critical Strikes 3 | . . 2 1 Burn 2 | . . 2 . Destroy 1 | . . . 1 Melee Attacks . | . . . . Impact . | . . . . Slashing . | . . . . Piercing . | . . . . Sneak Attacks . | . . . . Combat Hostiles . | . . . . Follow-up Attacks . | . . . . Damage Inflicted 720 | . 107 179 434 Guns 576 | . 107 178 291 Cannons 143 | . . . 143 Explosions . | . . . . Melee . | . . . . Ramming 1 | . . 1 . Kinetic 268 | . 43 79 146 Thermal 451 | . 64 99 288 Explosive . | . . . . Electromagnetic . | . . . . Impact . | . . . . Slashing . | . . . . Piercing . | . . . . Highest Corruption . | . . . . Average Corruption . | . . . . Corruption Purged . | . . . . Corruption Blocked . | . . . . Overload Shots . | . . . . Overflow Damage . | . . . . Projectiles . | . . . . Explosions . | . . . . Melee . | . . . . Knockbacks . | . . . . Impact . | . . . . Kinetic . | . . . . Secondary . | . . . . Self-Inflicted Damage . | . . . . Shots . | . . . . Rammed . | . . . . Targets Rammed 1 | . . 1 . Kicked 1 | . . 1 . Crushed . | . . . . Highest Temperature 265 | . 140 265 11 Average Temperature 101 | . 73 119 11 Received Heat Transfer 183 | . . 75 108 Siege Activations . | . . . . Martial Activations . | . . . . Shielding Activations . | . . . . Robots Disrupted . | . . . . Combat Hostiles . | . . . . Robots Corrupted . | . . . . Combat Hostiles . | . . . . Parts Fried . | . . . . Impact Corruptions . | . . . . Robots Melted . | . . . . Combat Hostiles . | . . . . Parts Melted . | . . . . Heat Transferred 1139 | . 185 444 510 Parts Sabotaged . | . . . . Parts Stolen . | . . . . Parts Stripped . | . . . . Power Chain Reactions . | . . . . Alert | -11 -10 -10 -10 ------- Run | Yrd Mat Min Sub Maximum Alert Level . | . . . . Low Security (%) 100 | 100 100 100 . Level 1 . | . . . . Level 2 . | . . . . Level 3 . | . . . . Level 4 . | . . . . Level 5 . | . . . . High Security . | . . . . Max Security . | . . . . Peak Influence 100 | . 70 100 . Initial 15 | . . 15 . Average 34 | . 22 42 . Influence Increases 330 | . 70 120 140 Destroy 0b10 Robot/C 240 | . 60 100 80 Destroy Leader 30 | . 10 20 . Lose Combat Pursuer 60 | . . . 60 Influence Decreases 280 | . 30 150 100 Entered New Map 31 | . . 25 6 Time Decay 219 | . 30 125 64 Lost Part 30 | . . . 30 Squads Dispatched 1 | . 1 . . Investigation . | . . . . Extermination . | . . . . Reinforcement 1 | . 1 . . Assault . | . . . . Garrison . | . . . . Intercept . | . . . . Searches Triggered . | . . . . Construction Impeded . | . . . . Haulers Reinforced . | . . . . Active Scanning Responses . | . . . . Cargo Convoy Interrupts . | . . . . Stealth | -11 -10 -10 -10 --------- Run | Yrd Mat Min Sub Distress Signals . | . . . . Communications Jammed . | . . . . Distress Signals . | . . . . Times Spotted 19 | . 5 5 9 Peak Tracking Total 6 | . 3 4 6 Tactical Retreats 2 | . . . 2 Traps | -11 -10 -10 -10 ------- Run | Yrd Mat Min Sub Traps Triggered . | . . . . Indirectly . | . . . . Trap Hack Attempts . | . . . . Triggered . | . . . . Disarmed . | . . . . Reprogrammed . | . . . . Reused . | . . . . Traps Extracted . | . . . . Installed . | . . . . Triggered . | . . . . Most Traps Carried 1 | . . 1 1 Machines | -11 -10 -10 -10 ---------- Run | Yrd Mat Min Sub Machines Disabled . | . . . . Max in Single Turn . | . . . . Machines Repaired . | . . . . Machines Dismantled . | . . . . Machines Sabotaged . | . . . . Overloaded Fab Kills . | . . . . Hacking | -11 -10 -10 -10 --------- Run | Yrd Mat Min Sub Machines Accessed 2 | . 2 . . Terminals 1 | . 1 . . Fabricators . | . . . . Repair Stations . | . . . . Recycling Units 1 | . 1 . . Scanalyzers . | . . . . Garrison Access . | . . . . Total Hacks 7 | . 7 . . Successful 3 | . 3 . . Failed 4 | . 4 . . Catastrophic . | . . . . Database Lockouts . | . . . . Manual 5 | . 5 . . Terminals 5 | . 5 . . Fabricators . | . . . . Repair Stations . | . . . . Recycling Units 2 | . 2 . . Scanalyzers . | . . . . Garrison Access . | . . . . Terminal Hacks 1 | . 1 . . Terminal Index 1 | . 1 . . Fabricator Hacks . | . . . . Repair Station Hacks . | . . . . Recycling Unit Hacks 1 | . 1 . . Report Inventory 1 | . 1 . . Scanalyzer . | . . . . Garrison Access Hacks . | . . . . Unauthorized Hacks 1 | . 1 . . Terminals 1 | . 1 . . Botnet 1 | . 1 . . Fabricators . | . . . . Repair Stations . | . . . . Recycling Units . | . . . . Scanalyzers . | . . . . Garrison Access . | . . . . Data Cores Recovered . | . . . . Used . | . . . . Hacking Detections 1 | . 1 . . Full Trace Events . | . . . . Feedback Events . | . . . . Feedback Blocked . | . . . . Robot Schematics Acquired . | . . . . Robots Built . | . . . . Authchips . | . . . . Time . | . . . . Total Robot Build Rating . | . . . . Part Schematics Acquired . | . . . . Parts Built . | . . . . Authchips . | . . . . Time . | . . . . Total Part Build Rating . | . . . . Parts Repaired . | . . . . Time . | . . . . Parts Recycled . | . . . . Recycled Matter . | . . . . Retrieved Matter . | . . . . Retrieved Components . | . . . . Parts Scanalyzed . | . . . . Part Schematics Acquired . | . . . . Parts Damaged . | . . . . Bothacking | -11 -10 -10 -10 ------------ Run | Yrd Mat Min Sub Used RIF Installer . | . . . . Robots Hacked . | . . . . Non-combat . | . . . . Combat . | . . . . Robot Hacks Applied . | . . . . Relay Couplers Released . | . . . . Fabnet Peak Effective % . | . . . . Robots Rewired . | . . . . Allies Hacked . | . . . . Hacks Repelled . | . . . . Allies | -11 -10 -10 -10 -------- Run | Yrd Mat Min Sub Total Allies . | . . . . Largest Group . | . . . . Highest-Rated Group . | . . . . Highest-Rated Ally . | . . . . Total Orders . | . . . . Ally Attacks . | . . . . Total Damage . | . . . . Kills . | . . . . Allies Corrupted . | . . . . Allies Melted . | . . . . Intel | -11 -10 -10 -10 ------- Run | Yrd Mat Min Sub Active Infowar (turns) . | . . . . Robot Analysis Total . | . . . . Derelict Logs Recovered 3 | . . 2 1 Drone Launches . | . . . . Drone Recoveries . | . . . . Exploration | -11 -10 -10 -10 ------------- Run | Yrd Mat Min Sub Turns Passed 611 | 17 141 281 172 Spaces Moved 358 | 15 75 197 71 Core . | . . . . Treads . | . . . . Legs 358 | 15 75 197 71 Wheels . | . . . . Hover . | . . . . Flight . | . . . . Fastest Speed 120 | 120 120 120 120 Average Speed 120 | 120 120 120 120 Slowest Speed 120 | 120 120 120 120 Overloaded Moves . | . . . . Propulsion Burnouts . | . . . . Robots Hopped . | . . . . Potential Cave-ins . | . . . . Cave-ins Triggered . | . . . . Exploration Rate (%) 17 | 2 20 38 10 Regions Visited 3 Branch Regions 2 Pre-discovered Areas 2 | . . 2 . Known Exits Taken . | . . . . Unknown Exits Taken 3 | 1 1 1 . Scrap Searched 1 | . . 1 . Spaces Dug . | . . . . Terrain Destroyed . | . . . . Melee . | . . . . Projectile . | . . . . AOE . | . . . . Terrain Rammed . | . . . . Walls Destroyed . | . . . . Machines Disabled . | . . . . Actions | -11 -10 -10 -10 --------- Run | Yrd Mat Min Sub Total 466 | 14 112 224 116 Wait 34 | . 20 . 14 Move 355 | 14 74 196 71 Hop . | . . . . Pick Up 12 | . 4 6 2 Fast Attach 1 | . 1 . . Attach 3 | . . . 3 Detach 1 | . . . 1 Swap 4 | . 1 2 1 Drop 10 | . 4 6 . Fire 45 | . 8 13 24 Melee . | . . . . Ram . | . . . . Kick 1 | . . 1 . Crush . | . . . . Escape Stasis . | . . . . Rewire . | . . . . Trap . | . . . . Miscellaneous . | . . . . Route ------- -11/Scrapyard -10/Materials -10/Mines (discovered 3 exits: [*Mat x2] / [*Sub]) -10/Subcaves (discovered 1 exit: [*Rec]) History --------- Turn | Location | Event 1 | -11/Scrapyard | Discovered new exit (range 1) 18 | -11/Scrapyard | Entered Materials 132 | -10/Materials | Discovered new exit (range 13) 159 | -10/Materials | Entered Mines 167 | -10/Mines | Learned location of Zion (-6) 322 | -10/Mines | Build established: Mutant 327 | -10/Mines | Discovered new exit (range 6) 328 | -10/Mines | Found a hidden stash of uninstalled traps 344 | -10/Mines | Discovered new exit (range 11) 427 | -10/Mines | Discovered new exit (range 11) 440 | -10/Mines | Entered Subcaves 480 | -10/Subcaves | Learned Materials terminal intel 519 | -10/Subcaves | Discovered new exit (range 15) 548 | -10/Subcaves | Core integrity fell below 50% 603 | -10/Subcaves | Core integrity fell below 20% 612 | -10/Subcaves | Destroyed by QX-RMD(R) with Subdweller Machine Gun Last Messages --------------- 00514_ Subatomizers dissect the Lgt. Assault Rifle. 00518_ Flight Unit fries itself beyond repair. 00519_ EXIT=FOUND 00520_ Flight Unit fries itself beyond repair. 00521_ Lgt. Assault Rifle fries itself beyond repair. 00522_ Flight Unit fries itself beyond repair. 00523_ Lgt. Ion Engine fries itself beyond repair. 00537_ Propulsion Shielding destroyed. 00556_ AP-RLQ(R) destroyed. 00565_ Acquired Sub. Beam Cannon. 00566_ Subatomizers dissect the Sub. Power Source. 00567_ Acquired 38 matter. 00570_ Acquired Sub. Power Source. 00572_ Acquired 1 matter. 00606_ Aluminum Leg destroyed. 00608_ QX-RMD(R) suffers critical hit (Destroy). Map ----- +----------------------------------------------------+ | ## ### ### #?????????????????????????? | | ?# #### #?# #?????????????????????????? | | ?## ##??# ##?? ###???????????????????????? | | ??## ### # #### & ###?????????????????????? | | ???# ## # " #?????????????????????? | | ???# " "#?????????????????????? | | ???#### # ## "#?????????????????????? | | ??????##?## #### " "" #????#????????????????? | | ?????????# #### "& #????<####????????????? | | ????????# #???? """"#???????????? | | ????????# ###???? " "#???????????? | | ????????## #????? "#???????????? | | ????????# # #????? ????????????? | | ???????? #### ##????? ?????????????? | | ???????#### ###### "" #????? ??????????????? | | ??????????###??????#" ###???? ###????????????? | | ????????????????????# ##??? ##???????????? | | ????????????????????## ##?? ##??????????? | | ?????????????????????## ### #??????????? | | ??????????????????????# % #??????????? | | ??????????????????????### % ## #?????????? | | ????????????????????????#" % ##???? ???????? | | ????????????????????????### % ## ??????? | | ???????????????????????#### #???????????? | | ?????????? #### ###???????????? | | ?????????? R @ ###?????????????? | | ???????????? " ##???????????????? | | ????????????" """ #????????????????? | | ??????????????? " ## ??????????????? | | ??????????????"" ??## #### ???????????? | | ??????????????"""????#######???# ??????????? | | ?????????????? ????????????????? #?????????? | | ???????????????????????????????? ##?????????? | | ???????????????????????????????? #####??????????? | | ????????????????????????????????###??????????????? | | ?????????????????????????????????????????????????? | | ?????????????????????????????????????????????????? | | ?????????????????????????????????????????????????? | | ?????????????????????????????????????????????????? | | ?????????????????????????????????????????????????? | | ?????????????????????????????????????????????????? | | ?????????????????????????????????????????????????? | | ?????????????????????????????????????????????????? | | ?????????????????????????????????????????????????? | | ?????????????????????????????????????????????????? | | ?????????????????????????????????????????????????? | | ?????????????????????????????????????????????????? | | ?????????????????????????????????????????????????? | | ?????????????????????????????????????????????????? | | ?????????????????????????????????????????????????? | +----------------------------------------------------+ Best States ------------- Heat Dissipation 39 Energy Generation 15 Energy Capacity 250 Matter Stores 300 Matter Capacity 300 Sight Range 16 Terrain Scan Density 10 Propulsion Shielding 33 Evasion (%) 55 Item Schematics ----------------- None Robot Schematics ------------------ None Fabricated ------------ Nothing Repaired ---------- Nothing Alien Tech Used ----------------- None Achievements -------------- None Challenges ------------ None Game ------ Seed DefenseRapidGravjet Manual? 0 Play Time 00:05:21 Cumulative 88.2 hours Start 2025.08.23 @ 15:37:40 End 2025.08.23 @ 15:41:43 Sessions 1 Manual Loads 0 Difficulty Rogue Special Mode None Game No. 111 Rogue 67 Adventurer 44 Explorer 0 Win Type - Total 0 Types 0/0/0/0/0/0/0/0/0/0 Lore% 22 Gallery% 45 Achievement% 39 Wizard Run 0 Options --------- Layout 1 ASCII 0 Keyboard 1 Movement Vi Keybinds 0 Fullscreen 1 Font 24/Terminus Map View 50x35 Zoom Use 0% Tactical HUD 1 Map Filters NONE Filters NONE Steam 1 RUN: 171b2a7b-3d84-47bb-9e68-117edf8f9105